bitfinex/quotes_SOLUSD_20250417
["timestamp","ask_amount","ask_price","bid_price","bid_amount"]
[1744859160699,0.03,131.58,131.57,12.22951688]
[1744859161185,0.03,131.58,131.57,12.51384002]
[1744859161375,0.03,131.58,131.57,12.22951688]
[1744859162296,0.03,131.58,131.57,19.83003371]
[1744859162498,0.03,131.58,131.57,32.34387373]
[1744859163070,0.03,131.58,131.57,20.11435685]
[1744859163267,0.03,131.63,131.62,44.64964886]
[1744859163496,1e-08,131.64,131.63,18.933972]
[1744859163681,0.03,131.69,131.64,0.14216157]
[1744859163879,0.03,131.69,131.68,12.22951688]
[1744859164274,0.03,131.69,131.68,19.82368455]
[1744859165194,0.03,131.69,131.65,26.0]
[1744859165370,0.03,131.69,131.68,12.22951688]
[1744859166188,0.03,131.69,131.68,38.65600159]
[1744859166391,0.03,131.69,131.68,45.82368455]
[1744859166976,0.03,131.69,131.68,19.82368455]
[1744859167884,0.03,131.69,131.67,7.59459528]
[1744859168078,0.03,131.69,131.68,12.22951688]
[1744859168276,0.03,131.69,131.67,12.22951688]
[1744859168593,0.03,131.69,131.68,12.22951688]
[1744859170085,0.03,131.69,131.68,19.82368455]
[1744859170499,0.03,131.69,131.68,12.22951688]
[1744859171789,0.03,131.69,131.68,19.82368455]
[1744859172794,0.03,131.69,131.68,12.22951688]
[1744859173481,0.03,131.69,131.67,12.22951688]
[1744859174383,0.03,131.69,131.68,12.22951688]
[1744859174800,0.03,131.69,131.66,7.59504238]
[1744859175120,0.03,131.69,131.65,7.59589821]
[1744859175294,0.03,131.69,131.66,12.22951688]
[1744859175616,12.22951688,131.67,131.62,12.22951688]
[1744859175789,12.22951688,131.66,131.62,12.22951688]
[1744859176183,12.22951688,131.65,131.61,12.22951688]
[1744859176397,12.22951688,131.65,131.6,12.22951688]
[1744859176809,12.22951688,131.65,131.61,12.22951688]
[1744859177209,19.82579949,131.65,131.6,12.22951688]
[1744859177899,12.22951688,131.64,131.59,7.59881814]
[1744859178102,95.02951688,131.64,131.6,12.22951688]
[1744859178410,102.62610277,131.64,131.6,12.22951688]
[1744859178912,102.62610277,131.64,131.56,7.60109455]
[1744859178913,12.22951688,131.62,131.56,7.60109455]
[1744859179098,82.8,131.61,131.58,12.22951688]
[1744859179808,82.8,131.61,131.59,12.22951688]
[1744859180110,82.8,131.63,131.59,12.22951688]
[1744859180502,102.62678127,131.63,131.58,12.22951688]
[1744859180813,30.87916574,131.62,131.58,12.22951688]
[1744859181009,30.87916574,131.62,131.56,7.60070761]
[1744859181187,82.8,131.61,131.58,12.22951688]
[1744859181915,82.8,131.61,131.57,12.22951688]
[1744859182213,82.8,131.61,131.58,12.22951688]
[1744859185197,82.8,131.61,131.58,19.82929535]
[1744859185606,82.8,131.61,131.59,12.22951688]
[1744859187694,82.8,131.61,131.58,12.22951688]
[1744859188123,82.8,131.61,131.59,12.22951688]
[1744859188303,82.8,131.61,131.6,12.22951688]
[1744859189014,82.8,131.63,131.6,12.22951688]
[1744859190119,82.8,131.63,131.59,12.22951688]
[1744859190321,30.87916574,131.62,131.54,42.263]
[1744859190511,12.22951688,131.6,131.55,12.22951688]
[1744859190700,95.02951688,131.61,131.56,12.22951688]
[1744859191025,7.59878419,131.6,131.56,12.22951688]
[1744859191499,7.59878419,131.6,131.55,7.60161941]
[1744859191703,12.22951688,131.58,131.54,0.063]
[1744859192009,82.8,131.57,131.54,0.063]
[1744859192226,12.22951688,131.56,131.54,0.063]
[1744859192609,18.64964886,131.56,131.54,0.063]
[1744859192910,82.8,131.55,131.54,0.063]
[1744859193142,38.4808381,131.55,131.54,0.063]
[1744859193317,38.62299967,131.55,131.54,0.063]
[1744859193511,38.90732281,131.55,131.54,0.063]
[1744859201351,18.64964886,131.55,131.54,0.063]
[1744859201524,38.22951688,131.56,131.54,0.063]
[1744859201922,30.87916574,131.55,131.54,0.063]
[1744859203665,38.4808381,131.55,131.54,0.063]
[1744859207961,38.62299967,131.55,131.54,0.063]
[1744859208949,38.4808381,131.55,131.54,0.063]
[1744859209565,30.87916574,131.55,131.54,0.063]
[1744859210069,18.64964886,131.55,131.54,0.063]
[1744859210560,82.8,131.57,131.54,12.29251688]
[1744859210747,16.22,131.59,131.56,12.22951688]
[1744859210931,82.8,131.6,131.58,12.22951688]
[1744859211554,82.8,131.6,131.59,12.22951688]
[1744859211745,82.8,131.62,131.59,12.22951688]
[1744859212050,16.04,131.63,131.6,12.22951688]
[1744859212259,16.04,131.63,131.61,12.22951688]
[1744859213849,16.04,131.63,131.6,12.22951688]
[1744859214371,23.63711881,131.63,131.59,12.22951688]
[1744859215449,18.64964886,131.62,131.59,12.22951688]
[1744859216134,16.07,131.69,131.61,12.22951688]
[1744859216336,16.07,131.69,131.66,12.22951688]
[1744859217056,16.07,131.69,131.65,12.22951688]
[1744859217264,30.87916574,131.68,131.64,12.22951688]
[1744859217470,30.87916574,131.68,131.63,12.22951688]
[1744859217644,82.8,131.67,131.63,12.22951688]
[1744859217840,82.8,131.67,131.64,12.22951688]
[1744859218172,82.8,131.67,131.65,12.22951688]
[1744859218758,82.8,131.67,131.64,12.22951688]
[1744859218946,82.8,131.67,131.63,12.22951688]
[1744859219146,101.44964886,131.66,131.62,12.22951688]
[1744859220063,109.04508221,131.66,131.62,12.22951688]
[1744859220859,109.04508221,131.66,131.58,73.55240292]
[1744859220860,30.87916574,131.64,131.56,7.8148]
[1744859221170,95.02951688,131.63,131.58,12.22951688]
[1744859221470,95.02951688,131.63,131.59,12.22951688]
[1744859221853,102.62676163,131.63,131.59,12.22951688]
[1744859222666,82.8,131.63,131.6,12.22951688]
[1744859222863,82.8,131.63,131.59,7.59929403]
[1744859223080,82.8,131.63,131.6,12.22951688]
[1744859223657,16.02,131.64,131.62,12.22951688]
[1744859223865,82.8,131.65,131.62,12.22951688]
[1744859224061,82.8,131.65,131.59,7.59929403]
[1744859224062,82.8,131.65,131.64,12.22951688]
[1744859224258,98.82,131.68,131.64,12.22951688]
[1744859224574,98.82,131.68,131.65,12.22951688]
[1744859225968,30.87916574,131.67,131.6,26.0]
[1744859226151,30.87916574,131.67,131.61,12.22951688]
[1744859226152,18.64964886,131.65,131.61,12.22951688]
[1744859226473,18.64964886,131.65,131.62,12.22951688]
[1744859227355,82.8,131.66,131.63,12.22951688]
[1744859227555,82.8,131.66,131.64,12.22951688]
[1744859227756,82.8,131.66,131.65,12.22951688]
[1744859228169,82.8,131.66,131.64,12.22951688]
[1744859228368,82.8,131.66,131.65,12.22951688]
[1744859228556,98.82,131.68,131.65,12.22951688]
[1744859231879,98.82,131.68,131.64,12.22951688]
[1744859232472,98.82,131.68,131.61,18.99551705]
[1744859232473,18.64964886,131.65,131.61,12.22951688]
[1744859232978,18.64964886,131.65,131.59,12.22951688]
[1744859232979,95.02951688,131.64,131.59,12.22951688]
[1744859233175,113.67916574,131.63,131.58,12.22951688]
[1744859233568,121.27652458,131.63,131.58,12.22951688]
[1744859235080,121.27652458,131.63,131.58,19.82940462]
[1744859235280,101.44964886,131.63,131.59,12.22951688]
[1744859235583,101.44964886,131.63,131.6,12.22951688]
[1744859236880,109.04681976,131.63,131.6,12.22951688]
[1744859237080,109.04681976,131.63,131.59,12.22951688]
[1744859237889,101.44964886,131.63,131.59,12.22951688]
[1744859238361,101.44964886,131.63,131.6,12.22951688]
[1744859238789,82.8,131.62,131.59,12.22951688]
[1744859240182,90.39763394,131.62,131.59,12.22951688]
[1744859240384,90.39763394,131.62,131.58,12.22951688]
[1744859240590,82.8,131.62,131.58,12.22951688]
[1744859243290,82.8,131.61,131.58,12.22951688]
[1744859243592,82.8,131.61,131.56,21.4888894]
[1744859243593,95.02951688,131.61,131.56,21.4888894]
[1744859244288,95.02951688,131.61,131.56,12.22951688]
[1744859244767,101.44964886,131.6,131.56,12.22951688]
[1744859245093,18.64964886,131.58,131.54,19.89460032]
[1744859245295,30.87916574,131.58,131.54,12.29251688]
[1744859245592,82.8,131.57,131.54,0.063]
[1744859245971,113.67916574,131.56,131.54,0.063]
[1744859246179,31.02132731,131.55,131.54,0.063]
[1744859246374,57.30565045,131.55,131.54,0.063]
[1744859247495,26.67838383,131.54,131.53,0.063]
[1744859247685,46.57160071,131.54,131.53,0.063]
[1744859247889,69.45160071,131.54,131.53,1e-08]
[1744859249701,67.95613357,131.52,131.51,1e-08]
[1744859249884,92.41516733,131.52,131.51,1e-08]
[1744859250381,44.79181043,131.49,131.48,0.063]
[1744859250693,73.08132731,131.49,131.48,0.063]
[1744859251975,80.68646838,131.49,131.48,0.063]
[1744859252475,73.36565045,131.49,131.48,0.063]
[1744859252800,54.97079152,131.49,131.48,0.063]
[1744859256779,42.74127464,131.49,131.48,0.063]
[1744859256976,54.97079152,131.49,131.48,0.063]
[1744859264728,45.07613357,131.48,131.47,0.063]
[1744859264898,57.30565045,131.48,131.47,0.063]
[1744859266398,159.81604394,131.46,131.45,0.063]
[1744859266791,45.07613357,131.45,131.44,0.063]
[1744859266996,57.30565045,131.45,131.44,0.063]
[1744859267322,32.30565045,131.45,131.4,0.063]
[1744859267507,57.30565045,131.43,131.4,0.063]
[1744859267706,19.07613357,131.42,131.4,0.063]
[1744859267914,45.07613357,131.37,131.35,0.063]
[1744859268216,129.73748888,131.36,131.35,0.063]
[1744859268611,54.67615635,131.36,131.35,0.063]
[1744859269322,47.06348888,131.36,131.35,0.063]
[1744859270322,15.9,131.36,131.35,0.063]
[1744859270500,18.64964886,131.4,131.35,12.29251688]
[1744859270824,18.64964886,131.4,131.36,12.22951688]
[1744859271416,18.64964886,131.4,131.36,19.84215987]
[1744859273926,82.8,131.4,131.39,19.56980722]
[1744859274899,82.8,131.4,131.39,27.18073651]
[1744859275622,82.8,131.44,131.39,65.77786696]
[1744859275827,82.8,131.44,131.43,19.56980722]
[1744859276119,82.8,131.45,131.43,19.56980722]
[1744859276508,82.8,131.45,131.44,19.56980722]
[1744859277001,82.8,131.45,131.44,27.1778413]
[1744859277415,15.9,131.47,131.44,27.1778413]
[1744859277599,82.83,131.49,131.46,19.56980722]
[1744859278197,82.83,131.49,131.45,19.56980722]
[1744859278425,18.64964886,131.48,131.44,7.60803408]
[1744859278735,18.64964886,131.48,131.44,27.1778413]
[1744859278912,82.83,131.49,131.46,7.60687661]
[1744859279117,82.83,131.49,131.46,27.17668383]
[1744859279316,82.83,131.49,131.46,7.60687661]
[1744859280103,82.83,131.49,131.46,27.17668383]
[1744859282230,82.83,131.49,131.45,27.17726252]
[1744859282710,38.21945608,131.48,131.43,19.56980722]
[1744859282916,121.01945608,131.48,131.43,19.56980722]
[1744859283430,121.01945608,131.48,131.44,19.56980722]
[1744859283818,82.8,131.48,131.45,19.56980722]
[1744859284016,82.8,131.48,131.46,19.56980722]
[1744859284223,82.8,131.48,131.47,7.60629801]
[1744859284408,0.03,131.49,131.47,27.17610523]
[1744859284736,0.03,131.49,131.48,19.56980722]
[1744859285726,0.03,131.49,131.48,27.17552672]
[1744859287628,82.8,131.48,131.43,27.62480722]
[1744859287836,38.21945608,131.47,131.43,1.5298]
[1744859288841,38.21945608,131.47,131.43,21.09960722]
[1744859289629,82.8,131.48,131.46,19.56980722]
[1744859289832,0.03,131.49,131.47,19.56980722]
[1744859290133,0.03,131.49,131.46,19.56980722]
[1744859291522,0.03,131.49,131.46,27.17643808]
[1744859291723,0.03,131.49,131.47,19.56980722]
[1744859292834,0.03,131.49,131.47,27.17583613]
[1744859293834,0.03,131.49,131.48,19.56980722]
[1744859294315,0.03,131.49,131.48,21.22940722]
[1744859294715,0.03,131.49,131.48,21.51373036]
[1744859295042,0.03,131.55,131.48,21.51373036]
[1744859295043,19.59980722,131.55,131.48,35.2653195]
[1744859295248,82.8,131.54,131.51,19.56980722]
[1744859296735,82.8,131.54,131.5,19.56980722]
[1744859297035,90.40255821,131.54,131.5,19.56980722]
[1744859297515,82.8,131.54,131.5,27.17431048]
[1744859298022,82.8,131.54,131.5,19.56980722]
[1744859298529,109.9721936,131.54,131.49,27.17472731]
[1744859299336,19.56980722,131.52,131.47,19.56980722]
[1744859300612,27.17334629,131.52,131.47,19.56980722]
[1744859302038,27.17334629,131.52,131.47,27.17604881]
[1744859302215,82.8,131.51,131.47,27.17604881]
[1744859305139,38.21945608,131.5,131.45,19.56980722]
[1744859305645,82.8,131.49,131.46,19.56980722]
[1744859306225,82.8,131.49,131.45,27.17718665]
[1744859307118,82.8,131.49,131.45,19.82394278]
[1744859309319,102.62200058,131.49,131.42,7.6091919]
[1744859309523,12.21656335,131.47,131.42,19.82575525]
[1744859309745,12.21656335,131.47,131.43,12.21656335]
[1744859310322,12.21656335,131.47,131.42,7.6091919]
[1744859310323,82.8,131.46,131.42,19.82575525]
[1744859310524,95.01656335,131.46,131.41,21.46401181]
[1744859311123,95.01656335,131.46,131.38,6.2546]
[1744859311124,101.44964886,131.45,131.39,7.61092929]
[1744859311322,12.21656335,131.42,131.39,0.063]
[1744859311534,95.01656335,131.42,131.39,0.063]
[1744859312750,82.8,131.42,131.39,12.27956335]
[1744859313463,82.8,131.42,131.41,12.21656335]
[1744859313652,82.8,131.46,131.41,12.21656335]
[1744859313846,82.8,131.46,131.43,12.21656335]
[1744859314551,82.8,131.46,131.43,19.82476577]
[1744859315328,82.8,131.46,131.44,12.21656335]
[1744859315548,15.9,131.48,131.44,12.21656335]
[1744859316841,15.9,131.48,131.45,12.21656335]
[1744859317437,95.01656335,131.49,131.45,12.21656335]
[1744859318952,95.01656335,131.49,131.45,19.82396064]
[1744859320253,102.62198069,131.49,131.44,19.82449231]
[1744859320455,12.21656335,131.47,131.42,19.82535642]
[1744859320652,95.01656335,131.47,131.42,19.82535642]
[1744859321056,82.8,131.47,131.44,12.21656335]
[1744859321242,82.8,131.47,131.45,12.21656335]
[1744859321439,82.8,131.49,131.45,12.21656335]
[1744859322058,30.86621221,131.48,131.43,19.82505728]
[1744859322255,18.64964886,131.48,131.44,12.21656335]
[1744859322957,95.01656335,131.49,131.44,19.82411036]
[1744859323131,95.01656335,131.49,131.45,12.21656335]
[1744859323335,95.01656335,131.49,131.44,19.82411036]
[1744859323773,82.8,131.49,131.45,12.21656335]
[1744859325259,82.8,131.49,131.45,19.82379422]
[1744859327358,82.8,131.49,131.46,12.21656335]
[1744859327555,82.8,131.49,131.47,12.21656335]
[1744859328360,110.91656335,131.51,131.47,12.21656335]
[1744859328533,98.7,131.51,131.47,12.21656335]
[1744859328954,110.91656335,131.51,131.47,19.82278089]
[1744859329153,110.91656335,131.51,131.47,7.60621754]
[1744859329759,18.64964886,131.5,131.46,12.21656335]
[1744859329962,30.86621221,131.5,131.44,7.60764472]
[1744859330155,82.8,131.49,131.45,12.21656335]
[1744859330461,82.8,131.48,131.44,19.82420807]
[1744859330858,82.8,131.48,131.44,7.60764472]
[1744859330859,95.01656335,131.48,131.44,7.60764472]
[1744859331057,102.62252703,131.48,131.43,19.8249745]
[1744859331253,12.21656335,131.47,131.43,7.60841115]
[1744859331459,12.21656335,131.45,131.41,12.21656335]
[1744859331653,12.21656335,131.45,131.4,21.4854923]
[1744859331836,82.8,131.44,131.4,21.4854923]
[1744859332464,82.8,131.44,131.4,9.26892895]
[1744859332651,82.8,131.44,131.4,21.4854923]
[1744859333853,82.8,131.44,131.39,7.67372743]
[1744859333854,102.6246614,131.44,131.39,7.67372743]
[1744859334058,95.01656335,131.43,131.39,0.063]
[1744859334571,102.6254463,131.43,131.39,0.063]
[1744859334760,113.66621221,131.42,131.39,0.063]
[1744859335068,82.8,131.41,131.39,0.063]
[1744859337870,82.8,131.41,131.39,12.27956335]
[1744859339065,82.8,131.41,131.39,0.063]
[1744859340363,82.8,131.41,131.39,12.27956335]
[1744859340546,82.8,131.41,131.4,12.21656335]
[1744859341073,82.8,131.41,131.4,19.82691342]
[1744859344275,82.8,131.45,131.4,19.82691342]
[1744859344456,82.8,131.45,131.41,12.21656335]
[1744859344867,82.8,131.45,131.42,12.21656335]
[1744859345869,82.8,131.45,131.41,12.21656335]
[1744859346460,95.01656335,131.45,131.39,0.063]
[1744859346655,12.21656335,131.43,131.39,0.063]
[1744859346852,12.21656335,131.42,131.39,0.063]
[1744859347155,82.8,131.41,131.39,0.063]
[1744859350069,82.8,131.4,131.39,0.063]
[1744859350279,113.66621221,131.4,131.39,0.063]
[1744859350780,121.27656228,131.4,131.39,0.063]
[1744859351478,109.05999893,131.4,131.39,0.063]
[1744859352056,121.27656228,131.4,131.39,0.063]
[1744859353278,30.86621221,131.4,131.39,0.063]
[1744859353980,28.03656335,131.41,131.39,0.063]
[1744859354360,30.86621221,131.4,131.39,0.063]
[1744859354570,38.47656228,131.4,131.39,0.063]
[1744859355279,38.76088542,131.4,131.39,0.063]
[1744859360564,50.97744877,131.4,131.39,0.063]
[1744859360766,0.14216157,131.39,131.35,0.063]
[1744859360984,31.15053535,131.36,131.35,0.063]
[1744859361181,60.5668987,131.36,131.35,1e-08]
[1744859361483,60.5668987,131.36,131.32,0.063]
[1744859361484,18.64964886,131.33,131.32,0.063]
[1744859361689,30.86621221,131.33,131.32,0.063]
[1744859363166,38.7649418,131.33,131.32,0.063]
[1744859363367,45.2396418,131.33,131.32,0.063]
[1744859363884,18.64964886,131.29,131.28,0.063]
[1744859364084,46.54621221,131.29,131.28,0.063]
[1744859366793,54.16293854,131.29,131.28,0.063]
[1744859370887,54.44726168,131.29,131.28,0.063]
[1744859373590,34.32964886,131.29,131.28,0.063]
[1744859373788,46.54621221,131.29,131.28,0.063]
[1744859375606,54.16293854,131.29,131.28,0.063]
[1744859375906,54.44726168,131.29,131.28,0.063]
[1744859376797,77.26726168,131.29,131.28,0.063]
[1744859377005,54.44726168,131.29,131.28,0.063]
[1744859378098,42.23069833,131.29,131.28,0.063]
[1744859378397,54.44726168,131.29,131.28,0.063]
[1744859378598,18.933972,131.23,131.22,0.063]
[1744859378903,18.933972,131.19,131.17,0.063]
[1744859379099,46.85053535,131.18,131.17,0.063]
[1744859379606,54.18932548,131.18,131.17,0.063]
[1744859380195,80.47364862,131.18,131.17,0.063]
[1744859381295,80.47364862,131.18,131.17,1e-08]
[1744859383814,68.25708527,131.18,131.17,1e-08]
[1744859383990,80.47364862,131.18,131.17,1e-08]
[1744859389489,44.64964886,131.15,131.14,0.063]
[1744859389690,57.15053535,131.15,131.14,0.063]
[1744859390908,64.77539238,131.15,131.14,0.063]
[1744859396115,52.27450589,131.15,131.14,0.063]
[1744859396420,64.49106924,131.15,131.14,0.063]
[1744859396817,64.77539238,131.15,131.14,0.063]
[1744859397519,64.49106924,131.15,131.14,0.063]
[1744859399327,64.77539238,131.15,131.14,0.063]
[1744859400722,80.61539238,131.15,131.14,0.063]
[1744859401724,99.67753496,131.15,131.12,0.063]
[1744859401898,44.933972,131.11,131.1,0.063]
[1744859402096,0.28432314,131.09,131.08,0.063]
[1744859402408,46.99053535,131.09,131.08,0.063]
[1744859402819,72.99053535,131.09,131.08,0.063]
[1744859403419,80.61888228,131.09,131.08,0.063]
[1744859405526,18.64964886,131.05,131.03,0.063]
[1744859405734,30.86621221,131.04,131.03,0.063]
[1744859405909,46.70621221,131.04,131.03,0.063]
[1744859407026,54.33746984,131.04,131.03,0.063]
[1744859408214,54.62179298,131.04,131.03,0.063]
[1744859408410,26.0,131.06,131.03,0.063]
[1744859408614,18.64964886,131.05,131.03,0.063]
[1744859408816,12.21656335,131.04,131.03,0.063]
[1744859409027,19.84782098,131.04,131.03,0.063]
[1744859409826,38.49746984,131.04,131.03,0.063]
[1744859410335,76.99835633,131.04,131.03,0.063]
[1744859411020,70.0765004,131.04,131.0,0.063]
[1744859411207,56.86621221,131.01,131.0,0.063]
[1744859411525,72.70621221,131.01,131.0,0.063]
[1744859411729,34.48964886,131.01,131.0,0.063]
[1744859412030,15.84,131.01,131.0,0.063]
[1744859412819,15.84,131.06,131.01,6.609]
[1744859413123,15.84,131.06,131.04,12.21656335]
[1744859414212,34.42964886,131.1,131.06,1.6138]
[1744859414414,34.42964886,131.1,131.06,13.83036335]
[1744859415832,12.21656335,131.13,131.08,12.21656335]
[1744859416223,18.64964886,131.13,131.09,12.21656335]
[1744859416936,38.49234162,131.13,131.08,12.21656335]
[1744859419740,12.21656335,131.11,131.07,6.5638]
[1744859419933,30.86621221,131.1,131.06,1.6138]
[1744859420340,12.21656335,131.09,131.06,1.6138]
[1744859421142,19.84536491,131.09,131.06,1.6138]
[1744859421361,12.21656335,131.07,131.04,6.0993]
[1744859421549,95.01656335,131.07,131.04,6.0993]
[1744859422038,95.01656335,131.07,131.03,1.6433]
[1744859422039,12.21656335,131.06,131.03,1.6433]
[1744859422234,95.01656335,131.05,131.03,1.6433]
[1744859422443,95.01656335,131.05,131.01,6.0993]
[1744859422642,82.8,131.04,131.01,18.31586335]
[1744859422944,82.8,131.04,131.02,12.21656335]
[1744859423738,82.8,131.04,131.01,18.31586335]
[1744859423939,82.8,131.04,131.01,6.0993]
[1744859424138,82.8,131.04,131.01,18.31586335]
[1744859425744,82.8,131.04,131.01,6.0993]
[1744859426447,95.01656335,131.04,131.01,6.0993]
[1744859426843,95.01656335,131.04,131.0,13.92286335]
[1744859429253,38.4986981,131.02,131.0,0.063]
[1744859429459,82.8,131.03,131.0,0.063]
[1744859429752,102.64845626,131.03,131.0,0.063]
[1744859431940,38.49886855,131.02,131.0,0.063]
[1744859434559,12.21656335,131.01,131.0,0.063]
[1744859435134,38.49886855,131.02,131.0,0.063]
[1744859435953,12.21656335,131.01,131.0,0.063]
[1744859436150,30.86621221,131.01,131.0,0.063]
[1744859436935,19.84921969,131.02,131.0,0.063]
[1744859437949,15.78,131.04,131.0,0.063]
[1744859438160,27.99656335,131.04,131.0,0.063]
[1744859438464,12.21656335,131.02,131.0,0.063]
[1744859439041,30.86621221,131.03,131.0,0.063]
[1744859439644,38.4984537,131.03,131.0,0.063]
[1744859440768,12.21656335,131.02,131.0,0.063]
[1744859441270,95.01656335,131.03,131.0,0.063]
[1744859442272,102.64842594,131.03,131.0,0.063]
[1744859445655,12.21656335,131.02,131.0,0.063]
[1744859446159,95.01656335,131.02,131.0,0.063]
[1744859446354,30.86621221,131.01,131.0,0.063]
[1744859447762,12.21656335,131.01,131.0,0.063]
[1744859448060,82.8,131.02,131.0,0.063]
[1744859448243,19.84859958,131.03,131.0,0.063]
[1744859448445,35.62790627,131.04,131.0,0.063]
[1744859449355,12.21656335,131.03,131.0,0.063]
[1744859449756,30.86621221,131.02,131.0,0.063]
[1744859449958,12.21656335,131.01,131.0,0.063]
[1744859451061,31.15053535,131.01,131.0,0.063]
[1744859451570,38.78354046,131.01,131.0,0.063]
[1744859457785,38.49921732,131.01,131.0,0.063]
[1744859458274,38.78354046,131.01,131.0,0.063]
[1744859460392,38.49921732,131.01,131.0,0.063]
[1744859462577,38.78354046,131.01,131.0,0.063]
[1744859463089,54.44354046,131.01,131.0,0.063]
[1744859467298,54.15921732,131.01,131.0,0.063]
[1744859468188,80.44354046,131.01,131.0,0.063]
[1744859468393,26.0,130.98,130.97,0.063]
[1744859468583,69.3670987,130.98,130.97,0.063]
[1744859469594,77.00185209,130.98,130.97,0.063]
[1744859469965,64.5009656,130.98,130.97,0.063]
[1744859470192,56.86621221,130.98,130.97,0.063]
[1744859470372,7.63433439,130.99,130.97,0.063]
[1744859470571,18.64964886,130.99,130.97,0.063]
[1744859470779,12.21656335,130.99,130.97,0.063]
[1744859471073,12.21656335,130.98,130.97,0.063]
[1744859472673,30.86621221,130.99,130.97,0.063]
[1744859473795,12.21656335,130.98,130.97,0.063]
[1744859474502,41.66,131.01,130.97,0.063]
[1744859474503,49.29347083,131.01,130.97,0.063]
[1744859474713,95.01656335,130.99,130.97,0.063]
[1744859475614,102.65079208,130.99,130.97,0.063]
[1744859475774,12.21656335,130.98,130.97,0.063]
[1744859475974,95.01656335,130.98,130.97,0.063]
[1744859476699,30.86621221,130.98,130.97,0.063]
[1744859477399,31.15053535,130.98,130.97,0.063]
[1744859477696,64.78528874,130.98,130.97,0.063]
[1744859479996,77.00185209,130.98,130.97,0.063]
[1744859480189,0.28432314,130.96,130.94,0.063]
[1744859480392,28.05656335,130.95,130.94,0.063]
[1744859481313,35.69306583,130.95,130.94,0.063]
[1744859482407,80.62703783,130.95,130.94,0.063]
[1744859483200,18.933972,130.94,130.91,0.063]
[1744859483400,30.86621221,130.92,130.91,0.063]
[1744859484298,18.64964886,130.92,130.91,0.063]
[1744859484503,38.50446457,130.92,130.91,0.063]
[1744859484898,12.21656335,130.92,130.91,0.063]
[1744859487817,38.50446457,130.92,130.91,0.063]
[1744859487982,38.78878771,130.92,130.91,0.063]
[1744859491212,38.50446457,130.92,130.91,0.063]
[1744859492210,51.00535106,130.92,130.91,0.063]
[1744859492795,38.78878771,130.92,130.91,0.063]
[1744859493899,38.50446457,130.92,130.91,0.063]
[1744859495119,77.00535106,130.92,130.91,0.063]
[1744859496093,18.64964886,130.89,130.86,0.063]
[1744859496319,109.02132314,130.9,130.86,0.063]
[1744859496320,30.86621221,130.87,130.86,0.063]
[1744859497119,38.50738283,130.87,130.86,0.063]
[1744859497415,106.23780243,130.88,130.86,0.063]
[1744859497600,12.21656335,130.87,130.86,0.063]
[1744859497801,30.86621221,130.87,130.86,0.063]
[1744859498812,38.50738283,130.87,130.86,0.063]
[1744859500817,26.29081948,130.87,130.86,0.063]
[1744859501126,38.50738283,130.87,130.86,0.063]
[1744859505119,34.18603491,130.87,130.86,0.063]
[1744859505331,34.47035805,130.87,130.86,0.063]
[1744859506111,34.18603491,130.87,130.86,0.063]
[1744859507228,38.62645825,130.87,130.86,0.063]
[1744859508327,26.29081948,130.87,130.86,0.063]
[1744859508534,38.62645825,130.87,130.86,0.063]
[1744859510212,38.91078139,130.87,130.86,0.063]
[1744859510413,78.78522016,130.87,130.86,1e-08]
[1744859510619,0.28432314,130.85,130.8,4.3887783]
[1744859510820,12.33563877,130.82,130.8,4.3887783]
[1744859511228,18.64964886,130.81,130.8,4.3887783]
[1744859511418,12.33563877,130.81,130.8,2.7529783]
[1744859512015,19.98031425,130.81,130.8,2.7529783]
[1744859512215,38.62996311,130.81,130.8,2.7529783]
[1744859513136,64.62996311,130.81,130.8,2.7529783]
[1744859515328,18.64964886,130.81,130.8,2.7529783]
[1744859516027,30.98528763,130.81,130.8,2.7529783]